fUSD/lending_fUSD_20250107
["ID","MTS","AMOUNT","RATE_DAILY","PERIOD"]
[348056399,1736286525862,-1815.29,0.000258,120]
[348056400,1736286525887,-2000.0,0.00025999,120]
[348056401,1736286525913,-500.0,0.00025999,120]
[348056402,1736286525940,-1000.0,0.00026,120]
[348056403,1736286525965,-2421.22590345,0.00026,120]
[348056404,1736286525991,-60612.20510897,0.00026,120]
[348056405,1736286526017,-500.0,0.00026599,120]
[348056406,1736286526044,-2222.48,0.00026994,30]
[348056407,1736286526072,-1000.0,0.00027,120]
[348056408,1736286526097,-678.55972622,0.00027,120]
[348056409,1736286526122,-2000.0,0.00027,120]
[348056410,1736286526147,-8718.33022598,0.00027,120]
[348056411,1736286526172,-3823.852188,0.00027,60]
[348056412,1736286526199,-110838.67762746,0.00027,30]
[348056413,1736286526223,-480.10973,0.00027,120]
[348056414,1736286526250,-150.0,0.00027,120]
[348056415,1736286526277,-150.0,0.00027,120]
[348056416,1736286526303,-150.0,0.00027,120]
[348056417,1736286526327,-150.0,0.00027,120]
[348056418,1736286526353,-150.0,0.00027,120]
[348056419,1736286526378,-252.08928,0.00027,120]
[348056420,1736286526402,-390.86677,0.00027,120]
[348056421,1736286526428,-390.86677,0.00027,120]
[348056422,1736286526452,-390.86677,0.00027,120]
[348056423,1736286526477,-390.86677,0.00027,120]
[348056424,1736286526502,-390.86677,0.00027,120]
[348056425,1736286526526,-390.86677,0.00027,120]
[348056426,1736286526553,-390.86677,0.00027,120]
[348056427,1736286526580,-390.86677,0.00027,120]
[348056428,1736286526619,-390.86683,0.00027,120]
[348056429,1736286526646,-741.10512171,0.00027,120]
[348056430,1736286526673,-500.0,0.00027199,120]
[348056431,1736286526699,-204.92305979,0.000272,44]
[348056432,1736286526725,-204.92305979,0.000272,44]
[348056433,1736286526752,-204.92305979,0.000272,44]
[348056434,1736286526779,-204.92305979,0.000272,44]
[348056435,1736286526806,-204.92305979,0.000272,44]
[348056436,1736286526834,-872.9250089,0.0002736,120]
[348056437,1736286526862,-2000.0,0.00027397,30]
[348056438,1736286526888,-2000.0,0.00027397,30]
[348056439,1736286526914,-2000.0,0.00027397,30]
[348056440,1736286526940,-2000.0,0.00027397,30]
[348056441,1736286526966,-2000.0,0.00027397,30]
[348056442,1736286526992,-2000.0,0.00027397,30]
[348056443,1736286527018,-2000.0,0.00027397,30]
[348056444,1736286527046,-2000.0,0.00027397,30]
[348056445,1736286527072,-2000.0,0.00027397,30]
[348056446,1736286527098,-2000.0,0.00027397,30]
[348056447,1736286527124,-2000.0,0.00027397,30]
[348056448,1736286527149,-2000.0,0.00027397,30]
[348056449,1736286527179,-2000.0,0.00027397,30]
[348056450,1736286527206,-2000.0,0.00027397,30]
[348056451,1736286527233,-2000.0,0.00027397,30]
[348056452,1736286527262,-2000.0,0.00027397,30]
[348056453,1736286527289,-2000.0,0.00027397,30]
[348056454,1736286527316,-2000.0,0.00027397,30]
[348056455,1736286527344,-2000.0,0.00027397,30]
[348056456,1736286527371,-1693.14494614,0.00027397,30]
[348056457,1736286527398,-200.0,0.00027397,60]
[348056458,1736286591169,-800.0,0.00027397,120]
[348056459,1736286603412,800.0,0.00027397,120]
[348056469,1736286631639,-442.63,8.619e-05,2]
[348056470,1736286631648,-250.0,8.619e-05,2]
[348056471,1736286631658,-1000.0,8.702e-05,2]
[348056472,1736286631667,-164.13,8.71e-05,2]
[348056473,1736286631676,-1500.0,8.776e-05,2]
[348056474,1736286631685,-250.0,8.776e-05,2]
[348056475,1736286631694,-300.0,8.793e-05,2]
[348056476,1736286631703,-28378.95,8.794e-05,2]
[348056477,1736286631712,-368.6,8.808e-05,2]
[348056478,1736286631721,-160.4,8.855e-05,2]
[348056479,1736286631730,-1711.73,8.862e-05,2]
[348056480,1736286631738,-150.0,9e-05,2]
[348056481,1736286631747,-150.0,9e-05,2]
[348056482,1736286631757,-166.51,9.047e-05,2]
[348056483,1736286631766,-150.0,9.2e-05,2]
[348056484,1736286631775,-150.0,9.4e-05,2]
[348056485,1736286631785,-500.0,9.464e-05,2]
[348056486,1736286631794,-216.845,9.5e-05,2]
[348056487,1736286631803,-150.0,9.54e-05,2]
[348056488,1736286631812,-150.0,9.541e-05,2]
[348056489,1736286631821,-978.7,9.541e-05,2]
[348056490,1736286631830,-150.0,9.541e-05,2]
[348056491,1736286631839,-338.56,9.541e-05,2]
[348056492,1736286631848,-437.01,9.541e-05,2]
[348056493,1736286631857,-150.0,9.541e-05,2]
[348056494,1736286631866,-182.89,9.541e-05,2]
[348056495,1736286631876,-182.89,9.541e-05,2]
[348056496,1736286631886,-150.0,9.541e-05,2]
[348056497,1736286631895,-437.01,9.541e-05,2]
[348056498,1736286631905,-182.89,9.541e-05,2]
[348056499,1736286631914,-150.0,9.541e-05,2]
[348056500,1736286631923,-182.29,9.541e-05,2]
[348056501,1736286631932,-436.8,9.541e-05,2]
[348056502,1736286631941,-150.0,9.6e-05,2]
[348056503,1736286631951,-420.0,9.673e-05,2]
[348056504,1736286631960,-2500.0,9.689e-05,2]
[348056505,1736286631970,-1000.0,9.691e-05,2]
[348056506,1736286631980,-442.63,9.696e-05,2]
[348056507,1736286631989,-67791.27788956,9.7e-05,2]
[348056508,1736286632053,-1561.440015,9.7e-05,2]
[348056509,1736286632065,-1470.9993,9.7e-05,2]
[348056510,1736286635338,-20910.28279544,9.7e-05,2]
[348056511,1736286635349,-150.0,9.78e-05,2]
[348056512,1736286635359,-150.0,9.782e-05,2]
[348056513,1736286635372,-500.0,9.788e-05,2]
[348056514,1736286635382,-500.0,9.788e-05,2]
[348056515,1736286635391,-500.0,9.788e-05,2]
[348056516,1736286635400,-500.0,9.788e-05,2]
[348056517,1736286635409,-500.0,9.788e-05,2]
[348056518,1736286635418,-500.0,9.788e-05,2]
[348056519,1736286635429,-500.0,9.788e-05,2]
[348056520,1736286635438,-500.0,9.788e-05,2]
[348056521,1736286635447,-500.0,9.788e-05,2]
[348056522,1736286635456,-500.0,9.788e-05,2]
[348056523,1736286635465,-500.0,9.788e-05,2]
[348056524,1736286635474,-500.0,9.788e-05,2]
[348056525,1736286635484,-526.01,9.788e-05,2]
[348056526,1736286635493,-500.0,9.788e-05,2]
[348056527,1736286635503,-511.89,9.788e-05,2]
[348056528,1736286635513,-500.0,9.788e-05,2]
[348056529,1736286635523,-633.33,9.788e-05,2]
[348056530,1736286635533,-500.0,9.788e-05,2]
[348056531,1736286635542,-500.0,9.788e-05,2]
[348056532,1736286635552,-641.19,9.788e-05,2]
[348056533,1736286635561,-500.0,9.788e-05,2]
[348056534,1736286635571,-500.0,9.788e-05,2]
[348056535,1736286635581,-500.0,9.788e-05,2]
[348056536,1736286635590,-500.0,9.788e-05,2]
[348056537,1736286635601,-371.01739044,9.788e-05,2]
[348056538,1736286635611,-500.0,9.788e-05,2]
[348056539,1736286635622,-35.11487013,9.788e-05,2]
[348056540,1736286635634,-254.90248247,9.788e-05,2]
[348056541,1736286635644,-189.24841254,9.788e-05,2]
[348056542,1736286635663,-310.75158746,9.788e-05,2]
[348056543,1736286635674,-500.0,9.788e-05,2]
[348056544,1736286635684,-500.0,9.788e-05,2]
[348056545,1736286635693,-500.0,9.788e-05,2]
[348056546,1736286635702,-500.0,9.788e-05,2]
[348056547,1736286635711,-566.59,9.788e-05,2]
[348056548,1736286635720,-500.0,9.788e-05,2]
[348056549,1736286635730,-500.0,9.788e-05,2]
[348056550,1736286635739,-500.0,9.788e-05,2]
[348056552,1736286635749,-500.0,9.788e-05,2]
[348056554,1736286635758,-500.0,9.788e-05,2]
[348056556,1736286635767,-500.0,9.788e-05,2]
[348056558,1736286635777,-500.0,9.788e-05,2]
[348056560,1736286635786,-500.0,9.788e-05,2]
[348056562,1736286635796,-500.0,9.788e-05,2]
[348056564,1736286635807,-500.0,9.788e-05,2]
[348056566,1736286635817,-500.0,9.788e-05,2]
[348056568,1736286635827,-500.0,9.788e-05,2]
[348056570,1736286635837,-500.0,9.788e-05,2]
[348056573,1736286635846,-500.0,9.788e-05,2]
[348056576,1736286635855,-326.05483682,9.788e-05,2]
[348056579,1736286635864,-500.0,9.788e-05,2]
[348056582,1736286635874,-500.0,9.788e-05,2]
[348056585,1736286635883,-500.0,9.788e-05,2]
[348056588,1736286635892,-551.94,9.788e-05,2]
[348056591,1736286635901,-500.0,9.788e-05,2]
[348056594,1736286635910,-500.0,9.788e-05,2]
[348056597,1736286635920,-500.0,9.788e-05,2]
[348056600,1736286635929,-500.0,9.788e-05,2]
[348056602,1736286635938,-500.0,9.788e-05,2]
[348056603,1736286635948,-500.0,9.788e-05,2]
[348056606,1736286635958,-500.0,9.788e-05,2]
[348056607,1736286635967,-500.0,9.788e-05,2]
[348056609,1736286635976,-510.04,9.788e-05,2]
[348056612,1736286635986,-500.0,9.788e-05,2]
[348056614,1736286635995,-500.0,9.788e-05,2]
[348056616,1736286636004,-500.0,9.788e-05,2]
[348056618,1736286636013,-500.0,9.788e-05,2]
[348056620,1736286636023,-589.86,9.788e-05,2]
[348056622,1736286636032,-2806.93,9.788e-05,2]
[348056623,1736286636042,-500.0,9.788e-05,2]
[348056625,1736286636051,-500.0,9.788e-05,2]
[348056628,1736286636062,-500.0,9.788e-05,2]
[348056630,1736286636071,-500.0,9.788e-05,2]
[348056632,1736286636081,-500.0,9.788e-05,2]
[348056634,1736286636091,-500.0,9.788e-05,2]
[348056636,1736286636100,-500.0,9.788e-05,2]
[348056638,1736286636109,-500.0,9.788e-05,2]
[348056640,1736286636120,-500.0,9.788e-05,2]
[348056642,1736286636129,-633.48,9.788e-05,2]
[348056644,1736286636139,-4404.04,9.788e-05,2]
[348056646,1736286636148,-500.0,9.788e-05,2]
[348056648,1736286636158,-500.0,9.788e-05,2]
[348056650,1736286636166,-500.0,9.788e-05,2]
[348056652,1736286636176,-2647.65,9.788e-05,2]
[348056654,1736286636184,-500.0,9.788e-05,2]
[348056656,1736286636193,-500.0,9.788e-05,2]
[348056658,1736286636203,-500.0,9.788e-05,2]
[348056660,1736286636212,-500.0,9.788e-05,2]
[348056662,1736286636221,-500.0,9.788e-05,2]
[348056664,1736286636231,-500.0,9.788e-05,2]
[348056666,1736286636240,-500.0,9.788e-05,2]
[348056668,1736286636249,-500.0,9.788e-05,2]
[348056670,1736286636258,-1409.83,9.788e-05,2]
[348056672,1736286636268,-721.96,9.788e-05,2]
[348056674,1736286636278,-500.0,9.788e-05,2]
[348056676,1736286636287,-500.0,9.788e-05,2]
[348056678,1736286636301,-500.0,9.788e-05,2]
[348056680,1736286636310,-121.88310128,9.788e-05,2]
[348056682,1736286636322,-378.11689872,9.788e-05,2]
[348056684,1736286636331,-500.0,9.788e-05,2]
[348056686,1736286636342,-500.0,9.788e-05,2]
[348056688,1736286636351,-2570.3629016,9.788e-05,2]
[348056690,1736286636362,-1229.4170984,9.788e-05,2]
[348056692,1736286636372,-500.0,9.788e-05,2]
[348056694,1736286636381,-500.0,9.788e-05,2]
[348056696,1736286636393,-500.0,9.788e-05,2]
[348056698,1736286636403,-500.0,9.788e-05,2]
[348056700,1736286636412,-500.0,9.788e-05,2]
[348056702,1736286636421,-500.0,9.788e-05,2]
[348056704,1736286636432,-500.0,9.788e-05,2]
[348056706,1736286636441,-500.0,9.788e-05,2]
[348056708,1736286636450,-503.53,9.788e-05,2]
[348056710,1736286636460,-500.0,9.788e-05,2]
[348056712,1736286636470,-500.0,9.788e-05,2]
[348056714,1736286636479,-500.0,9.788e-05,2]
[348056716,1736286636488,-500.0,9.788e-05,2]
[348056718,1736286636497,-707.09,9.788e-05,2]
[348056720,1736286636507,-500.0,9.788e-05,2]
[348056722,1736286636517,-1612.7,9.788e-05,2]
[348056724,1736286636526,-500.0,9.788e-05,2]
[348056726,1736286636534,-500.0,9.788e-05,2]
[348056728,1736286636543,-500.0,9.788e-05,2]
[348056730,1736286636552,-500.0,9.788e-05,2]
[348056732,1736286636561,-1423.76,9.788e-05,2]
[348056734,1736286636570,-500.0,9.788e-05,2]
[348056736,1736286636580,-500.0,9.788e-05,2]
[348056738,1736286636589,-836.08,9.788e-05,2]
[348056740,1736286636599,-500.0,9.788e-05,2]
[348056742,1736286636608,-857.26,9.788e-05,2]
[348056744,1736286636620,-500.0,9.788e-05,2]
[348056746,1736286636629,-500.0,9.788e-05,2]
[348056748,1736286636638,-500.0,9.788e-05,2]
[348056750,1736286636647,-1260.24,9.788e-05,2]
[348056752,1736286636656,-500.0,9.788e-05,2]
[348056754,1736286636665,-2693.88,9.788e-05,2]
[348056756,1736286636674,-500.0,9.788e-05,2]
[348056758,1736286636683,-500.0,9.788e-05,2]
[348056760,1736286636692,-500.0,9.788e-05,2]
[348056762,1736286636701,-500.0,9.788e-05,2]
[348056764,1736286636710,-500.0,9.788e-05,2]
[348056766,1736286636720,-500.0,9.789e-05,2]
[348056768,1736286636729,-877.57,9.789e-05,2]
[348056770,1736286636738,-500.0,9.789e-05,2]
[348056772,1736286636748,-500.0,9.789e-05,2]
[348056774,1736286636757,-500.0,9.789e-05,2]
[348056776,1736286636766,-444.2729016,9.789e-05,2]
[348056778,1736286636778,-55.7270984,9.789e-05,2]
[348056780,1736286636787,-1441.96,9.789e-05,2]
[348056782,1736286636797,-939.1929016,9.789e-05,2]
[348056784,1736286636808,-127.2770984,9.789e-05,2]
[348056786,1736286636818,-1079.53,9.789e-05,2]
[348056788,1736286636827,-740.69,9.789e-05,2]
[348056790,1736286636837,-628.25,9.789e-05,2]
[348056792,1736286636846,-500.0,9.789e-05,2]
[348056794,1736286636856,-500.0,9.789e-05,2]
[348056796,1736286636866,-500.0,9.789e-05,2]
[348056798,1736286636876,-500.0,9.789e-05,2]
[348056800,1736286636885,-396.95505421,9.789e-05,2]
[348056803,1736286636897,-103.04494579,9.789e-05,2]
[348056805,1736286636907,-500.0,9.789e-05,2]
[348056807,1736286636916,-500.0,9.789e-05,2]
[348056809,1736286636926,-1063.16,9.789e-05,2]
[348056811,1736286636935,-500.0,9.789e-05,2]
[348056813,1736286636945,-698.43,9.789e-05,2]
[348056815,1736286636954,-500.0,9.789e-05,2]
[348056817,1736286636963,-1152.32,9.789e-05,2]
[348056819,1736286636973,-1269.41,9.789e-05,2]
[348056821,1736286636983,-500.0,9.789e-05,2]
[348056823,1736286636992,-1282.82,9.789e-05,2]
[348056825,1736286637002,-594.3,9.789e-05,2]
[348056827,1736286637010,-500.0,9.789e-05,2]
[348056829,1736286637020,-500.0,9.789e-05,2]
[348056831,1736286637029,-500.0,9.789e-05,2]
[348056833,1736286637038,-500.0,9.789e-05,2]
[348056835,1736286637048,-500.0,9.789e-05,2]
[348056837,1736286637057,-745.97,9.789e-05,2]
[348056839,1736286637067,-500.0,9.789e-05,2]
[348056841,1736286637076,-500.0,9.789e-05,2]
[348056843,1736286637085,-569.74,9.789e-05,2]
[348056845,1736286637094,-724.19,9.789e-05,2]
[348056847,1736286637103,-505.52,9.789e-05,2]
[348056849,1736286637113,-1269.96,9.789e-05,2]
[348056851,1736286637123,-1999.26,9.789e-05,2]
[348056853,1736286637133,-500.0,9.789e-05,2]
[348056855,1736286637142,-1490.7,9.789e-05,2]
[348056857,1736286637151,-823.51,9.789e-05,2]
[348056859,1736286637161,-500.0,9.789e-05,2]
[348056861,1736286637170,-500.0,9.789e-05,2]
[348056863,1736286637180,-1204.27,9.789e-05,2]
[348056865,1736286637189,-1488.83,9.789e-05,2]
[348056867,1736286637199,-500.0,9.789e-05,2]
[348056869,1736286637208,-500.0,9.789e-05,2]
[348056871,1736286637217,-500.0,9.789e-05,2]
[348056873,1736286637227,-500.0,9.789e-05,2]
[348056875,1736286637237,-1320.72,9.789e-05,2]
[348056877,1736286637246,-500.0,9.789e-05,2]
[348056879,1736286637256,-544.42,9.789e-05,2]
[348056881,1736286637265,-683.08,9.789e-05,2]
[348056883,1736286637274,-500.0,9.789e-05,2]
[348056885,1736286637283,-1408.63,9.789e-05,2]
[348056887,1736286637297,-500.0,9.789e-05,2]
[348056889,1736286637307,-891.02,9.789e-05,2]
[348056891,1736286637316,-632.75,9.789e-05,2]
[348056893,1736286637325,-500.0,9.789e-05,2]
[348056895,1736286637335,-500.0,9.789e-05,2]
[348056897,1736286637344,-590.12,9.789e-05,2]
[348056899,1736286637353,-692.27,9.789e-05,2]
[348056900,1736286637363,-557.45,9.789e-05,2]
[348056901,1736286637374,-500.0,9.789e-05,2]
[348056903,1736286637383,-2261.59,9.789e-05,2]
[348056904,1736286637392,-1370.24,9.789e-05,2]
[348056905,1736286637402,-528.79662084,9.789e-05,2]
[348056906,1736286637411,-500.0,9.789e-05,2]
[348056907,1736286637419,-793.36,9.789e-05,2]
[348056908,1736286637428,-1162.04,9.789e-05,2]
[348056910,1736286637438,-603.55,9.789e-05,2]
[348056911,1736286637447,-500.0,9.789e-05,2]
[348056912,1736286637457,-500.0,9.789e-05,2]
[348056913,1736286637466,-500.0,9.789e-05,2]
[348056914,1736286637475,-1280.84,9.789e-05,2]
[348056915,1736286637484,-1327.61,9.789e-05,2]
[348056916,1736286637493,-500.0,9.789e-05,2]
[348056917,1736286637503,-500.0,9.789e-05,2]
[348056918,1736286637512,-771.89,9.789e-05,2]
[348056919,1736286637522,-1847.93,9.789e-05,2]
[348056920,1736286637532,-1150.38,9.789e-05,2]
[348056921,1736286637543,-1036.64,9.789e-05,2]
[348056922,1736286637554,-500.0,9.789e-05,2]
[348056923,1736286637564,-1316.95,9.789e-05,2]
[348056924,1736286637573,-1426.18,9.789e-05,2]
[348056925,1736286637583,-3266.54,9.789e-05,2]
[348056926,1736286637592,-1113.47,9.789e-05,2]
[348056927,1736286637602,-1550.33,9.789e-05,2]
[348056928,1736286637613,-1392.14,9.789e-05,2]
[348056929,1736286637623,-500.0,9.789e-05,2]
[348056930,1736286637633,-500.0,9.789e-05,2]
[348056931,1736286637642,-500.0,9.789e-05,2]
[348056932,1736286637651,-1068.36,9.789e-05,2]
[348056933,1736286637660,-860.44,9.789e-05,2]
[348056934,1736286637670,-7408.17,9.789e-05,2]
[348056935,1736286637680,-2523.91,9.789e-05,2]
[348056936,1736286637692,-1307.39,9.789e-05,2]
[348056937,1736286637702,-1681.5,9.789e-05,2]
[348056938,1736286637713,-904.21,9.789e-05,2]
[348056939,1736286637724,-1165.76,9.789e-05,2]
[348056940,1736286637735,-500.0,9.789e-05,2]
[348056941,1736286637745,-844.29,9.789e-05,2]
[348056942,1736286637755,-4741.74,9.789e-05,2]
[348056943,1736286637764,-500.0,9.789e-05,2]
[348056944,1736286637774,-500.0,9.789e-05,2]
[348056945,1736286637783,-1154.41,9.789e-05,2]
[348056946,1736286637793,-593.50798361,9.789e-05,2]
[348056947,1736286637802,-1228.11,9.789e-05,2]
[348056948,1736286637812,-500.0,9.789e-05,2]
[348056949,1736286637821,-990.11,9.789e-05,2]
[348056950,1736286637830,-3296.06,9.789e-05,2]
[348056951,1736286637840,-4472.65,9.789e-05,2]
[348056952,1736286637849,-500.0,9.789e-05,2]
[348056953,1736286637859,-1582.71,9.789e-05,2]
[348056954,1736286637869,-943.45,9.789e-05,2]
[348056955,1736286637879,-4576.65,9.789e-05,2]
[348056956,1736286637889,-500.0,9.789e-05,2]
[348056957,1736286637898,-1538.91,9.789e-05,2]
[348056958,1736286637908,-801.99,9.789e-05,2]
[348056960,1736286637917,-1827.56,9.789e-05,2]
[348056961,1736286637928,-1955.93,9.789e-05,2]
[348056962,1736286637937,-1723.34,9.789e-05,2]
[348056963,1736286637948,-1484.8,9.789e-05,2]
[348056964,1736286637957,-513.14,9.789e-05,2]
[348056965,1736286637967,-1092.44,9.789e-05,2]
[348056967,1736286637977,-1422.59,9.789e-05,2]
[348056969,1736286637986,-772.33,9.789e-05,2]
[348056970,1736286637995,-500.0,9.789e-05,2]
[348056971,1736286638005,-3231.54,9.789e-05,2]
[348056972,1736286638014,-1076.48,9.789e-05,2]
[348056973,1736286638024,-649.41,9.789e-05,2]
[348056974,1736286638034,-1707.52,9.789e-05,2]
[348056975,1736286638043,-1451.25,9.789e-05,2]
[348056976,1736286638053,-2431.01,9.789e-05,2]
[348056977,1736286638063,-5144.15,9.789e-05,2]
[348056978,1736286638072,-500.0,9.789e-05,2]
[348056979,1736286638082,-6328.85,9.789e-05,2]
[348056980,1736286638255,-1353.22,9.789e-05,2]
[348056981,1736286638265,-1917.852747,9.789e-05,2]
[348056982,1736286638275,-549.1,9.789e-05,2]
[348056983,1736286638284,-728.13,9.789e-05,2]
[348056984,1736286638296,-832.91,9.789e-05,2]
[348056985,1736286638305,-1326.2,9.789e-05,2]
[348056986,1736286638314,-1788.471631,9.789e-05,2]
[348056987,1736286638324,-500.0,9.789e-05,2]
[348056988,1736286638334,-567.81,9.789e-05,2]
[348056989,1736286638343,-1534.34,9.789e-05,2]
[348056990,1736286638353,-159.403828,9.789e-05,2]
[348056991,1736286638362,-3563.2,9.789e-05,2]
[348056992,1736286638373,-838.9,9.789e-05,2]
[348056993,1736286638383,-1184.94,9.789e-05,2]
[348056994,1736286638392,-1278.18,9.789e-05,2]
[348056995,1736286638402,-1000.0,9.79e-05,2]
[348056996,1736286638411,-500.0,9.79e-05,2]
[348056997,1736286638421,-500.0,9.79e-05,2]
[348056998,1736286638430,-500.0,9.79e-05,2]
[348056999,1736286638439,-500.0,9.79e-05,2]
[348057000,1736286638448,-500.0,9.79e-05,2]
[348057001,1736286638458,-500.0,9.79e-05,2]
[348057002,1736286638467,-500.0,9.79e-05,2]
[348057003,1736286638476,-500.0,9.79e-05,2]
[348057004,1736286638485,-500.0,9.79e-05,2]
[348057005,1736286638494,-500.0,9.79e-05,2]
[348057006,1736286638504,-500.0,9.79e-05,2]
[348057007,1736286638513,-500.0,9.79e-05,2]
[348057008,1736286638522,-500.0,9.79e-05,2]
[348057009,1736286638531,-500.0,9.79e-05,2]
[348057010,1736286638540,-500.0,9.79e-05,2]
[348057011,1736286638549,-500.0,9.79e-05,2]
[348057012,1736286638558,-500.0,9.79e-05,2]
[348057013,1736286638567,-500.0,9.79e-05,2]
[348057014,1736286638576,-500.0,9.79e-05,2]
[348057015,1736286638585,-500.0,9.79e-05,2]
[348057016,1736286638595,-500.0,9.79e-05,2]
[348057017,1736286638604,-500.0,9.79e-05,2]
[348057018,1736286638613,-500.0,9.79e-05,2]
[348057019,1736286638626,-500.0,9.79e-05,2]
[348057020,1736286638639,-500.0,9.79e-05,2]
[348057021,1736286638648,-500.0,9.79e-05,2]
[348057022,1736286638657,-500.0,9.79e-05,2]
[348057023,1736286638667,-500.0,9.79e-05,2]
[348057024,1736286638676,-670.06,9.79e-05,2]
[348057025,1736286638685,-500.0,9.79e-05,2]
[348057026,1736286638694,-540.55826794,9.79e-05,2]
[348057027,1736286638704,-500.0,9.79e-05,2]
[348057028,1736286638713,-500.0,9.79e-05,2]
[348057029,1736286638722,-500.0,9.79e-05,2]
[348057030,1736286638731,-500.0,9.79e-05,2]
[348057031,1736286638741,-500.0,9.79e-05,2]
[348057032,1736286638750,-500.0,9.79e-05,2]
[348057033,1736286638759,-500.0,9.79e-05,2]
[348057034,1736286638768,-500.0,9.79e-05,2]
[348057035,1736286638777,-500.0,9.79e-05,2]
[348057036,1736286638786,-500.0,9.79e-05,2]
[348057037,1736286638796,-500.0,9.79e-05,2]
[348057038,1736286638805,-500.0,9.79e-05,2]
[348057039,1736286638814,-500.0,9.79e-05,2]
[348057040,1736286638823,-500.0,9.79e-05,2]
[348057041,1736286638833,-288.53397082,9.79e-05,2]
[348057042,1736286638843,-979.67,9.79e-05,2]
[348057043,1736286638852,-500.0,9.79e-05,2]
[348057044,1736286638862,-500.0,9.79e-05,2]
[348057045,1736286638876,-500.0,9.79e-05,2]
[348057046,1736286638886,-719.91,9.79e-05,2]
[348057047,1736286638895,-500.0,9.79e-05,2]
[348057048,1736286638905,-500.0,9.79e-05,2]
[348057049,1736286638914,-500.0,9.79e-05,2]
[348057050,1736286638923,-500.0,9.79e-05,2]
[348057051,1736286638932,-500.0,9.79e-05,2]
[348057052,1736286638942,-500.0,9.79e-05,2]
[348057053,1736286638962,-500.0,9.79e-05,2]
[348057054,1736286638973,-431.62816439,9.79e-05,2]
[348057055,1736286638985,-500.0,9.79e-05,2]
[348057056,1736286638995,-500.0,9.79e-05,2]
[348057057,1736286639005,-500.0,9.79e-05,2]
[348057058,1736286639014,-501.93484108,9.79e-05,2]
[348057059,1736286639023,-527.37190023,9.79e-05,2]
[348057060,1736286639033,-500.0,9.79e-05,2]
[348057061,1736286639043,-500.0,9.79e-05,2]
[348057062,1736286639052,-500.0,9.79e-05,2]
[348057063,1736286639062,-500.0,9.79e-05,2]
[348057064,1736286639071,-625.46,9.79e-05,2]
[348057065,1736286639081,-500.0,9.79e-05,2]
[348057066,1736286639090,-500.0,9.79e-05,2]
[348057067,1736286639100,-620.91,9.79e-05,2]
[348057068,1736286639111,-500.0,9.79e-05,2]
[348057069,1736286639120,-500.0,9.79e-05,2]
[348057070,1736286639133,-500.0,9.79e-05,2]
[348057071,1736286639142,-500.0,9.79e-05,2]
[348057072,1736286639151,-500.0,9.79e-05,2]
[348057073,1736286639160,-500.0,9.79e-05,2]
[348057074,1736286639170,-500.0,9.79e-05,2]
[348057075,1736286639179,-500.0,9.79e-05,2]
[348057076,1736286639188,-500.0,9.79e-05,2]
[348057077,1736286639198,-500.0,9.79e-05,2]
[348057078,1736286639207,-500.0,9.79e-05,2]
[348057079,1736286639217,-500.0,9.79e-05,2]
[348057080,1736286639227,-500.0,9.79e-05,2]
[348057081,1736286639237,-500.0,9.79e-05,2]
[348057082,1736286639246,-500.0,9.79e-05,2]
[348057083,1736286639256,-500.0,9.79e-05,2]
[348057084,1736286639266,-500.0,9.79e-05,2]
[348057085,1736286639275,-500.0,9.79e-05,2]
[348057086,1736286639285,-500.0,9.79e-05,2]
[348057087,1736286639296,-500.0,9.79e-05,2]
[348057088,1736286639306,-500.0,9.79e-05,2]
[348057089,1736286639315,-500.0,9.79e-05,2]
[348057090,1736286639324,-500.0,9.79e-05,2]
[348057091,1736286639335,-500.0,9.79e-05,2]
[348057093,1736286639346,-500.0,9.79e-05,2]